bitfinex/quotes_BTCUSD_20240729
["timestamp","ask_amount","ask_price","bid_price","bid_amount"]
[1722278737034,1.23998687,67487.0,67486.0,0.014913]
[1722278737240,1.53733987,67487.0,67486.0,0.028913]
[1722278737482,1.53633987,67487.0,67486.0,0.014913]
[1722278737683,1.54505695,67487.0,67486.0,0.014913]
[1722278737883,1.54805695,67487.0,67486.0,0.014913]
[1722278738293,1.54705695,67487.0,67486.0,0.000913]
[1722278738471,1.25170395,67487.0,67486.0,0.014913]
[1722278738887,1.54805695,67487.0,67486.0,0.014913]
[1722278739659,1.62130417,67487.0,67486.0,0.014913]
[1722278739864,1.72130417,67487.0,67486.0,0.014913]
[1722278740165,2.01765717,67487.0,67486.0,0.014913]
[1722278740409,1.31133826,67484.0,67483.0,0.14999999]
[1722278740694,1.31133826,67484.0,67483.0,0.13150912]
[1722278740695,2.36315916,67484.0,67483.0,0.13150912]
[1722278740912,2.46315916,67484.0,67483.0,0.13150912]
[1722278741111,2.46315916,67484.0,67483.0,0.12033465]
[1722278741695,2.46315916,67484.0,67483.0,0.011]
[1722278741696,2.76052516,67484.0,67483.0,0.011]
[1722278741862,2.90862455,67484.0,67483.0,0.011]
[1722278742062,2.90862455,67484.0,67477.0,0.05581176]
[1722278742063,1.76402126,67478.0,67477.0,0.05581176]
[1722278742267,1.76402126,67478.0,67477.0,0.01302888]
[1722278742268,2.86643614,67478.0,67477.0,0.01302888]
[1722278742494,1.90770126,67469.0,67465.0,0.14999999]
[1722278742632,1.17136926,67466.0,67465.0,0.13238636]
[1722278742838,2.40944849,67466.0,67465.0,0.13238636]
[1722278743039,2.68295855,67466.0,67465.0,0.00880558]
[1722278743246,1.46789126,67461.0,67460.0,0.00880558]
[1722278743576,2.07786347,67461.0,67460.0,0.00880558]
[1722278743799,1.75819482,67461.0,67460.0,0.00880558]
[1722278744006,2.2685125,67461.0,67460.0,0.00880558]
[1722278744218,1.53370526,67460.0,67448.0,0.07154355]
[1722278744379,2.15621651,67460.0,67448.0,0.07154355]
[1722278744566,2.45248577,67460.0,67448.0,0.07154355]
[1722278745005,2.42926892,67460.0,67448.0,0.07154355]
[1722278745213,2.5943443,67460.0,67448.0,0.07154355]
[1722278745805,2.5943443,67460.0,67439.0,0.07154355]
[1722278745806,2.51397504,67460.0,67459.0,0.0857569]
[1722278746008,2.51397504,67460.0,67459.0,0.0237669]
[1722278746009,2.81044604,67460.0,67459.0,0.0237669]
[1722278746209,2.85042464,67460.0,67459.0,0.01484796]
[1722278746410,2.8908153,67460.0,67459.0,0.01484796]
[1722278746810,2.8908153,67460.0,67459.0,0.007783]
[1722278747304,2.91407437,67460.0,67459.0,0.007783]
[1722278747691,2.61760337,67460.0,67459.0,0.007783]
[1722278748800,2.25860398,67460.0,67459.0,0.007783]
[1722278749035,2.17823472,67460.0,67459.0,0.007783]
[1722278749212,2.15497565,67460.0,67459.0,0.007783]
[1722278749357,2.05497565,67460.0,67459.0,0.007783]
[1722278749701,1.70850465,67460.0,67459.0,0.007783]
[1722278750104,1.8587688,67460.0,67459.0,0.007783]
[1722278750332,1.7429688,67460.0,67459.0,0.007783]
[1722278750463,1.7929688,67460.0,67459.0,0.007783]
[1722278750681,1.7429688,67460.0,67459.0,0.007783]
[1722278750881,1.8019688,67460.0,67459.0,0.008783]
[1722278751083,1.9019688,67460.0,67459.0,0.008783]
[1722278752207,1.7519688,67460.0,67459.0,0.008783]
[1722278752389,1.77522693,67460.0,67459.0,0.008783]
[1722278752592,1.77622693,67460.0,67459.0,0.008783]
[1722278753101,1.14159178,67460.0,67459.0,0.008783]
[1722278753379,0.82186265,67460.0,67459.0,0.008783]
[1722278753607,1.11833365,67460.0,67459.0,0.008783]
[1722278753831,1.11733365,67460.0,67459.0,0.008783]
[1722278754258,1.11833365,67460.0,67459.0,0.008783]
[1722278754433,1.26143304,67460.0,67459.0,0.008783]
[1722278755786,1.26043304,67460.0,67459.0,0.008783]
[1722278756200,1.28368992,67460.0,67459.0,0.008783]
[1722278756600,1.26043304,67460.0,67459.0,0.008783]
[1722278756800,1.26043304,67460.0,67459.0,0.007783]
[1722278756801,1.10833365,67460.0,67459.0,0.007783]
[1722278757126,1.10933365,67460.0,67459.0,0.007783]
[1722278757573,1.40580465,67460.0,67459.0,0.007783]
[1722278758095,1.40580465,67460.0,67459.0,0.009783]
[1722278758309,1.45580465,67460.0,67459.0,0.009783]
[1722278758490,1.59890404,67460.0,67459.0,0.009783]
[1722278758715,1.54890404,67460.0,67459.0,0.009783]
[1722278758957,1.54790404,67460.0,67459.0,0.009783]
[1722278759178,1.54890404,67460.0,67459.0,0.009783]
[1722278759821,1.57216092,67460.0,67459.0,0.009783]
[1722278760258,1.57216092,67460.0,67459.0,0.007783]
[1722278760475,1.57316092,67460.0,67459.0,0.007783]
[1722278760694,1.57416092,67460.0,67459.0,0.007783]
[1722278760967,1.55090404,67460.0,67459.0,0.007783]
[1722278761419,1.25443304,67460.0,67459.0,0.007783]
[1722278761878,0.12705726,67460.0,67459.0,0.007783]
[1722278762104,0.12705726,67460.0,67459.0,0.07932655]
[1722278762566,0.12705726,67460.0,67459.0,0.22756455]
[1722278762567,0.10282177,67460.0,67459.0,0.22756455]
[1722278762776,0.003,67460.0,67459.0,0.96831655]
[1722278763190,0.02623549,67460.0,67459.0,0.96831655]
[1722278763319,0.12605726,67460.0,67459.0,0.67184055]
[1722278763519,0.12505726,67460.0,67459.0,0.22712655]
[1722278763724,0.12505726,67460.0,67459.0,0.67184055]
[1722278764121,0.14830904,67460.0,67459.0,0.37536455]
[1722278764320,0.14830904,67460.0,67459.0,0.67184055]
[1722278764525,0.14930904,67460.0,67459.0,0.22712655]
[1722278764863,0.14930904,67460.0,67459.0,0.37536455]
[1722278764864,0.16423994,67460.0,67459.0,0.37536455]
[1722278765071,0.14830904,67460.0,67459.0,0.96831655]
[1722278765403,0.14830904,67460.0,67459.0,1.29447255]
[1722278765404,0.04648727,67460.0,67459.0,1.29447255]
[1722278765639,0.02325178,67460.0,67459.0,1.46149594]
[1722278765845,0.02425178,67460.0,67459.0,1.46149594]
[1722278767217,0.02425178,67460.0,67459.0,1.75815017]
[1722278767414,0.02425178,67460.0,67459.0,2.00808019]
[1722278767643,0.001,67460.0,67459.0,2.00808019]
[1722278768133,0.00184,67460.0,67459.0,1.98131568]
[1722278768363,0.00184,67460.0,67459.0,2.00807119]
[1722278768564,0.00184,67460.0,67459.0,1.98130668]
[1722278768769,0.12305726,67482.0,67481.0,0.438779]
[1722278769101,0.12305726,67482.0,67481.0,0.883347]
[1722278769486,0.12305726,67482.0,67481.0,0.586968]
[1722278769927,0.04982177,67482.0,67481.0,0.883347]
[1722278770096,0.09982177,67482.0,67481.0,0.883347]
[1722278770309,0.12305726,67482.0,67481.0,0.883347]
[1722278770683,0.14730357,67482.0,67481.0,0.897347]
[1722278771619,0.12405726,67482.0,67481.0,0.897347]
[1722278771762,0.001,67482.0,67481.0,1.35982539]
[1722278772333,0.001,67482.0,67481.0,1.06344639]
[1722278772535,0.05082177,67482.0,67481.0,0.897347]
[1722278772702,0.001,67482.0,67481.0,0.897347]
[1722278773087,0.001,67482.0,67481.0,0.522568]
[1722278773088,0.12405726,67482.0,67481.0,0.522568]
[1722278773479,0.12405726,67482.0,67481.0,0.818947]
[1722278773677,0.12405726,67482.0,67481.0,0.522568]
[1722278773948,0.13746299,67482.0,67481.0,0.522568]
[1722278774210,0.20815726,67482.0,67481.0,0.014]
[1722278774777,0.23140354,67482.0,67481.0,0.014]
[1722278775134,0.37959054,67482.0,67481.0,0.014]
[1722278775542,1.41181493,67482.0,67481.0,0.014]
[1722278775765,0.96216432,67482.0,67481.0,0.014]
[1722278775994,0.14830354,67482.0,67481.0,0.014]
[1722278776283,0.12406805,67482.0,67481.0,0.014]
[1722278776481,0.59286554,67482.0,67481.0,0.014]
[1722278778151,1.03233993,67482.0,67481.0,0.014]
[1722278778292,1.32871493,67482.0,67481.0,0.014]
[1722278778493,1.47181432,67482.0,67481.0,0.014]
[1722278778718,1.47281432,67482.0,67481.0,0.014]
[1722278779523,1.1839178,67482.0,67481.0,0.014]
[1722278779741,1.1849178,67482.0,67481.0,0.014]
[1722278780402,1.1839178,67482.0,67481.0,0.014]
[1722278780617,1.1849178,67482.0,67481.0,0.014]
[1722278782794,1.16167152,67482.0,67481.0,0.014]
[1722278783665,1.13843603,67482.0,67481.0,0.014]
[1722278783867,1.16167152,67482.0,67481.0,0.014]
[1722278784634,1.01857213,67482.0,67481.0,0.014]
[1722278784865,0.12305726,67470.0,67469.0,0.07154355]
[1722278785842,0.12405726,67470.0,67469.0,0.07154355]
[1722278786045,0.1463072,67470.0,67469.0,0.07154355]
[1722278786252,0.12305726,67470.0,67469.0,0.07154355]
[1722278786656,0.04982177,67470.0,67469.0,0.21975955]
[1722278786857,0.04982177,67470.0,67469.0,0.81262355]
[1722278787239,0.05082177,67470.0,67469.0,0.81262355]
[1722278787441,0.10082177,67470.0,67469.0,0.81262355]
[1722278787990,0.05082177,67470.0,67469.0,0.81262355]
[1722278788190,0.10082177,67470.0,67469.0,0.97602355]
[1722278788335,0.04982177,67470.0,67469.0,0.97602355]
[1722278788553,0.04982177,67478.0,67476.0,0.0632]
[1722278788758,0.04982177,67478.0,67477.0,0.51613855]
[1722278789074,0.07323549,67480.0,67479.0,0.81817]
[1722278789075,0.02323549,67480.0,67479.0,0.81817]
[1722278789299,0.02323549,67480.0,67479.0,1.02446939]
[1722278789559,0.02323549,67480.0,67479.0,0.75108139]
[1722278791409,0.02323549,67480.0,67479.0,1.04746939]
[1722278791750,0.02323549,67480.0,67479.0,1.07714939]
[1722278793275,0.04648003,67480.0,67479.0,1.07714939]
[1722278793462,0.02324454,67480.0,67479.0,1.37353739]
[1722278793664,0.02324454,67480.0,67479.0,1.5106848]
[1722278793665,0.02424454,67480.0,67479.0,1.5106848]
[1722278793863,0.02424454,67480.0,67479.0,1.37371562]
[1722278794065,0.02424454,67480.0,67479.0,1.5236166]
[1722278794266,0.02424454,67480.0,67479.0,1.51085209]
[1722278794267,0.02524454,67480.0,67479.0,1.51085209]
[1722278795271,0.02524454,67480.0,67479.0,1.21446409]
[1722278795820,0.02524454,67480.0,67479.0,1.21428586]
[1722278796023,0.04948003,67480.0,67479.0,0.92489786]
[1722278796342,0.02624454,67480.0,67479.0,1.22128586]
[1722278796544,0.02624454,67480.0,67479.0,0.92489786]
[1722278796935,0.02623549,67480.0,67479.0,0.92489786]
[1722278797145,0.05282177,67480.0,67479.0,0.38521916]
[1722278797363,0.05282177,67480.0,67479.0,0.68160644]
[1722278797812,0.05282177,67480.0,67479.0,0.558462]
[1722278798019,0.12605726,67480.0,67479.0,0.0842]
[1722278798189,0.12605726,67480.0,67479.0,0.021]
[1722278798393,0.12605726,67480.0,67479.0,0.465582]
[1722278798754,0.12705726,67480.0,67479.0,0.169194]
[1722278798964,0.12605726,67480.0,67479.0,0.014]
[1722278799236,0.12605726,67480.0,67479.0,0.162194]
[1722278799388,0.12705726,67480.0,67479.0,0.169194]
[1722278799617,0.12705726,67480.0,67479.0,0.021]
[1722278799805,0.15030256,67480.0,67479.0,0.021]
[1722278800207,0.15030256,67480.0,67479.0,0.007]
[1722278800208,0.14830256,67480.0,67479.0,0.007]
[1722278800454,0.14930256,67480.0,67479.0,0.169194]
[1722278800701,0.14930256,67480.0,67479.0,0.148194]
[1722278800702,0.14830256,67480.0,67479.0,0.148194]
[1722278800927,0.14830256,67480.0,67479.0,0.444582]
[1722278801069,0.14930256,67480.0,67479.0,0.155194]
[1722278801288,0.14930256,67480.0,67479.0,0.007]
[1722278801923,0.15014256,67480.0,67479.0,0.451582]
[1722278802346,0.15014256,67480.0,67479.0,0.155194]
[1722278802554,0.14914256,67480.0,67479.0,0.451582]
[1722278802755,0.04932079,67480.0,67479.0,0.74797]
[1722278802981,0.0260853,67480.0,67479.0,0.74797]
[1722278803335,0.14914256,67480.0,67479.0,0.74797]
[1722278803533,0.14914256,67480.0,67479.0,0.451582]
[1722278803736,0.15014256,67480.0,67479.0,0.465582]
[1722278803959,0.15014256,67480.0,67479.0,0.169194]
[1722278804674,0.15114256,67480.0,67479.0,0.465582]
[1722278804849,0.12789726,67480.0,67479.0,0.465582]
[1722278805054,0.12689726,67480.0,67479.0,0.465582]
[1722278805256,0.12789726,67480.0,67479.0,0.465582]
[1722278805659,0.12629562,67480.0,67479.0,0.465582]
[1722278807022,0.12729562,67480.0,67479.0,0.465582]
[1722278807225,0.20559562,67480.0,67479.0,0.021]
[1722278807693,0.12629562,67480.0,67479.0,0.021]
[1722278807811,0.12729562,67480.0,67479.0,0.169194]
[1722278808012,0.12629562,67480.0,67479.0,0.169194]
[1722278808213,0.12629562,67480.0,67479.0,0.465582]
[1722278808863,0.12729562,67480.0,67479.0,0.465582]
[1722278809063,0.12629562,67480.0,67479.0,0.465582]
[1722278809270,0.05306013,67480.0,67479.0,0.76197]
[1722278809478,0.07630523,67480.0,67479.0,0.76197]
[1722278809698,0.05306013,67480.0,67479.0,0.76197]
[1722278809884,0.05306013,67480.0,67479.0,0.529482]
[1722278810104,0.00323836,67480.0,67479.0,0.529482]
[1722278810446,0.12629562,67480.0,67479.0,0.529482]
[1722278810888,0.10306013,67480.0,67479.0,0.529482]
[1722278811100,0.12729562,67480.0,67479.0,0.0849]
[1722278811620,0.12729562,67480.0,67479.0,0.021]
[1722278811821,0.27249562,67480.0,67479.0,0.021]
[1722278812261,0.20899562,67480.0,67479.0,0.021]
[1722278812397,0.23224112,67480.0,67479.0,0.021]
[1722278813046,0.14954112,67480.0,67479.0,0.169194]
[1722278813247,0.14954112,67480.0,67479.0,0.233394]
[1722278813479,0.14954112,67480.0,67479.0,0.0852]
[1722278813646,0.15054112,67480.0,67479.0,0.021]
[1722278814634,0.10306013,67480.0,67479.0,0.021]
[1722278814819,0.12729562,67480.0,67479.0,0.021]
[1722278815244,0.12629562,67480.0,67479.0,0.021]
[1722278815592,0.12629562,67480.0,67479.0,0.169194]
[1722278815931,0.12629562,67480.0,67479.0,0.465582]
[1722278816132,0.12629562,67480.0,67479.0,0.29234622]
[1722278816777,0.12629562,67480.0,67479.0,0.58873422]
[1722278816979,0.12629562,67480.0,67479.0,0.88512222]
[1722278817520,0.00323836,67480.0,67479.0,0.88512222]
[1722278818650,0.02647385,67480.0,67479.0,0.88512222]
[1722278819113,0.00323836,67480.0,67479.0,0.88512222]
[1722278819431,0.00323836,67480.0,67479.0,1.46210961]
[1722278819551,0.00323836,67480.0,67479.0,1.68528813]
[1722278819748,0.00323836,67480.0,67479.0,1.78166513]
[1722278819957,0.02648263,67480.0,67479.0,1.80842964]
[1722278820306,0.00323836,67480.0,67479.0,1.81134513]
[1722278821065,0.00223836,67480.0,67479.0,1.80434513]
[1722278821276,0.00323836,67480.0,67479.0,1.80934513]
[1722278821519,0.00323836,67480.0,67479.0,2.13249764]
[1722278821679,0.05066177,67496.0,67479.0,2.13249764]
[1722278821680,0.00084,67496.0,67495.0,1.180713]
[1722278821868,0.00084,67496.0,67495.0,2.08115819]
[1722278822068,0.00084,67496.0,67495.0,2.11083819]
[1722278822683,0.00084,67496.0,67495.0,2.11079184]
[1722278822899,0.00084,67496.0,67495.0,2.08302733]
[1722278823095,0.00084,67496.0,67495.0,2.10979184]
[1722278823096,0.02407781,67496.0,67495.0,2.10979184]
[1722278823694,0.02407781,67496.0,67495.0,2.08302733]
[1722278824118,0.02407781,67496.0,67495.0,2.10979184]
[1722278824319,0.02407781,67496.0,67495.0,2.12379184]
[1722278824521,0.02407781,67496.0,67495.0,2.13779184]
[1722278824759,0.02407781,67496.0,67495.0,2.12479184]
[1722278824976,0.02407781,67496.0,67495.0,2.12379184]
[1722278825089,0.02407781,67496.0,67495.0,2.13879184]
[1722278825495,0.02407781,67496.0,67495.0,2.12479184]
[1722278825922,0.02407781,67496.0,67495.0,1.98769668]
[1722278826164,0.02407781,67496.0,67495.0,2.12478686]
[1722278826432,0.02407781,67496.0,67495.0,2.22478686]
[1722278827402,0.02407781,67496.0,67495.0,2.22378686]
[1722278827605,0.02407781,67496.0,67495.0,2.20978686]
[1722278827730,0.02407781,67496.0,67495.0,2.19702235]
[1722278827930,0.02407781,67496.0,67495.0,2.22378686]
[1722278828335,0.02407781,67496.0,67495.0,2.20978686]
[1722278828760,0.02407781,67496.0,67495.0,2.22378686]
[1722278829136,0.02407781,67496.0,67495.0,2.00938686]
[1722278829348,0.02407781,67496.0,67495.0,1.99538686]
[1722278829484,0.02407781,67496.0,67495.0,2.02338686]
[1722278830025,0.02407781,67496.0,67495.0,2.02238686]
[1722278830228,0.02407781,67496.0,67495.0,1.9240788]
[1722278830833,0.02407781,67496.0,67495.0,1.93298303]
[1722278830992,0.02407781,67496.0,67495.0,1.95974754]
[1722278832242,0.02407781,67496.0,67495.0,2.25706554]
[1722278832865,0.02407781,67496.0,67495.0,1.95974754]
[1722278833067,0.02407781,67496.0,67495.0,1.94574754]
[1722278833272,0.02407781,67496.0,67495.0,2.22906554]
[1722278833273,0.00084,67496.0,67495.0,2.22906554]
[1722278833475,0.00084,67496.0,67495.0,2.24306554]
[1722278833618,0.00084,67496.0,67495.0,2.22906554]
[1722278834472,0.00084,67496.0,67495.0,1.93274754]
[1722278834654,0.00084,67496.0,67495.0,1.93174754]
[1722278834849,0.00084,67496.0,67495.0,1.94574754]
[1722278835255,0.00084,67496.0,67495.0,1.91898303]
[1722278835567,0.00084,67496.0,67495.0,1.92274754]
[1722278836585,0.02407571,67496.0,67495.0,1.92274754]
[1722278836832,0.02407571,67496.0,67495.0,1.94574754]
[1722278837033,0.02407571,67496.0,67495.0,1.94674754]
[1722278837575,0.02407571,67496.0,67495.0,1.95974754]
[1722278837576,0.00084,67496.0,67495.0,1.95974754]
[1722278837982,0.00084,67496.0,67495.0,1.96074754]
[1722278838569,0.00084,67496.0,67495.0,1.95974754]
[1722278838785,0.00084,67496.0,67495.0,1.95974928]
[1722278839420,0.00084,67496.0,67495.0,1.94574928]
[1722278839919,0.00084,67496.0,67495.0,1.94674928]
[1722278840314,0.00084,67496.0,67495.0,1.94574928]
[1722278840550,0.00084,67496.0,67495.0,1.91898477]
[1722278840790,0.00084,67496.0,67495.0,1.86274928]
[1722278841031,0.00084,67496.0,67495.0,1.87774928]
[1722278841032,0.02407556,67496.0,67495.0,1.87774928]
[1722278841507,0.02407556,67496.0,67495.0,1.95814928]
[1722278841795,0.02407556,67496.0,67495.0,1.95714928]
[1722278842031,0.02407556,67496.0,67495.0,1.9571435]
[1722278842544,0.02407556,67496.0,67495.0,1.9581435]
[1722278842751,0.00084,67508.0,67507.0,1.06386974]
[1722278842990,0.5541,67520.0,67514.0,0.00017823]
[1722278843228,0.296136,67537.0,67514.0,0.00017823]
[1722278843229,0.00126903,67519.0,67518.0,0.80512023]
[1722278843486,0.0788,67526.0,67525.0,0.740465]
[1722278843730,0.0788,67526.0,67525.0,1.41815039]
[1722278846144,0.02322919,67526.0,67525.0,1.86432936]
[1722278846359,0.02322919,67526.0,67525.0,1.70962936]
[1722278847366,0.02322919,67526.0,67525.0,1.38667885]
[1722278847568,0.12946468,67526.0,67525.0,0.28914962]
[1722278847771,0.02323549,67519.0,67517.0,0.2154]
[1722278847966,0.08983549,67519.0,67518.0,0.88363939]
[1722278848228,0.08983549,67519.0,67518.0,0.29120739]
[1722278848431,0.08983549,67519.0,67518.0,0.58742439]
[1722278848630,0.11306539,67519.0,67518.0,0.58742439]
[1722278849010,0.08983549,67519.0,67518.0,0.90664139]
[1722278849531,0.0666,67519.0,67518.0,0.90664139]
[1722278849688,0.08983549,67519.0,67518.0,0.62442439]
[1722278850213,0.26845726,67519.0,67518.0,0.014]
[1722278850412,0.26945726,67519.0,67518.0,0.014]
[1722278851601,0.29268924,67519.0,67518.0,0.162108]
[1722278851812,0.29268924,67519.0,67518.0,0.458325]
[1722278852218,0.26945726,67519.0,67518.0,0.014]
[1722278853284,0.41756326,67519.0,67518.0,0.014]
[1722278853574,0.26945726,67519.0,67518.0,0.014]
[1722278853909,0.41756326,67519.0,67518.0,0.014]
[1722278854431,0.41842785,67519.0,67518.0,0.014]
[1722278854882,0.41756326,67519.0,67518.0,0.014]
[1722278855080,0.41756326,67519.0,67518.0,0.028]
[1722278855081,0.27101146,67519.0,67518.0,0.028]
[1722278855284,0.44235054,67519.0,67518.0,0.028]
[1722278855482,0.29269034,67519.0,67518.0,0.014]
[1722278855690,0.29169034,67519.0,67518.0,0.014]
[1722278856039,0.12405726,67517.0,67516.0,0.148112]
[1722278856240,0.12405726,67516.0,67515.0,0.148114]
[1722278857090,0.12405726,67516.0,67515.0,0.444344]
[1722278857265,0.12405726,67516.0,67515.0,0.148114]
[1722278857608,0.12305726,67515.0,67514.0,0.148117]
[1722278858017,0.12405726,67515.0,67514.0,0.444351]
[1722278859912,0.12405726,67515.0,67514.0,0.458351]
[1722278860073,0.12305726,67515.0,67514.0,0.472351]
[1722278860484,0.12405726,67515.0,67514.0,0.472351]
[1722278860720,0.12405726,67515.0,67514.0,0.028]
[1722278861073,0.19925726,67515.0,67514.0,0.028]
[1722278861412,0.19925726,67515.0,67514.0,0.176117]
[1722278862741,0.19925726,67515.0,67514.0,0.028]
[1722278862913,0.19825523,67515.0,67514.0,0.028]
[1722278863379,0.26525726,67515.0,67514.0,0.028]
[1722278863637,0.39013677,67515.0,67514.0,0.028]
[1722278863831,1.00583226,67515.0,67514.0,0.028]
[1722278864055,1.33238074,67515.0,67514.0,0.028]
[1722278864218,1.52548013,67515.0,67514.0,0.028]
[1722278864452,1.94490212,67515.0,67514.0,0.028]
[1722278864662,2.20120212,67515.0,67514.0,0.014]
[1722278864775,2.20120212,67515.0,67485.0,0.326041]
[1722278864776,0.41071326,67496.0,67485.0,0.326041]
[1722278864983,0.41071326,67496.0,67488.0,0.21971655]
[1722278865185,0.26255726,67496.0,67488.0,0.07154355]
[1722278865397,0.26255726,67496.0,67490.0,0.148169]
[1722278865619,0.24032177,67496.0,67490.0,0.148169]
[1722278865821,0.26355726,67496.0,67490.0,0.148169]
[1722278866088,0.70802626,67496.0,67488.0,0.07154355]
[1722278866307,0.41171326,67496.0,67488.0,0.07154355]
[1722278866502,1.00433926,67496.0,67488.0,0.07154355]
[1722278866675,1.33829848,67496.0,67485.0,0.07154355]
[1722278867056,1.31505725,67496.0,67485.0,0.07154355]
[1722278867666,1.00433926,67496.0,67485.0,0.07154355]
[1722278867998,1.00433926,67496.0,67495.0,0.0639263]
[1722278868908,0.70802626,67496.0,67495.0,0.0639263]
[1722278869161,0.26355726,67496.0,67495.0,0.0639263]
[1722278869344,0.41171326,67496.0,67495.0,0.0639263]
[1722278869553,1.00433926,67496.0,67495.0,0.0639263]
[1722278869974,1.00433926,67496.0,67473.0,0.07122682]
[1722278869975,0.09982177,67461.0,67460.0,0.000924]
[1722278870095,0.35449026,67461.0,67460.0,0.000924]
[1722278870291,0.20725726,67461.0,67460.0,0.000924]
[1722278870981,0.67873299,67461.0,67460.0,0.000924]
[1722278871462,0.20725726,67461.0,67460.0,0.000924]
[1722278872057,0.35549026,67461.0,67460.0,0.000924]
[1722278872231,0.35549026,67461.0,67460.0,0.012924]
[1722278872558,0.20725726,67461.0,67460.0,0.012924]
[1722278872920,0.35549026,67461.0,67460.0,0.012924]
[1722278873121,0.35549026,67461.0,67460.0,0.026924]
[1722278873122,0.18502177,67461.0,67460.0,0.026924]
[1722278873329,0.20825726,67461.0,67460.0,0.026924]
[1722278873740,0.20725726,67461.0,67460.0,0.026924]
[1722278873986,0.20825726,67461.0,67460.0,0.026924]
[1722278874186,0.18502177,67461.0,67460.0,0.026924]
[1722278874361,0.20825726,67461.0,67460.0,0.026924]
[1722278874783,0.23151011,67461.0,67460.0,0.026924]
[1722278875206,0.20825726,67461.0,67460.0,0.026924]
[1722278876027,0.20725726,67461.0,67460.0,0.026924]
[1722278876230,0.20725726,67461.0,67460.0,0.175159]
[1722278876431,0.20725726,67461.0,67460.0,1.20767139]
[1722278876432,0.001,67461.0,67460.0,1.20767139]
[1722278876633,0.001,67461.0,67460.0,0.93420039]
[1722278877366,0.09982177,67463.0,67462.0,0.741157]
[1722278877567,0.09982177,67463.0,67462.0,1.06062]
[1722278877769,0.09982177,67463.0,67462.0,0.764157]
[1722278877967,0.04982177,67463.0,67462.0,0.764157]
[1722278878170,0.04982177,67464.0,67463.0,0.741145]
[1722278879157,0.07307304,67464.0,67463.0,0.741145]
[1722278879441,0.02325127,67464.0,67463.0,0.90724439]
[1722278879672,0.12305726,67467.0,67466.0,0.741112]
[1722278880265,0.09982177,67467.0,67466.0,0.741112]
[1722278880607,0.12305726,67467.0,67466.0,0.741112]
[1722278880806,0.09982177,67467.0,67466.0,0.741112]
[1722278881015,0.12305726,67469.0,67466.0,0.741112]
[1722278881224,0.12305726,67469.0,67468.0,1.037526]
[1722278881636,0.12305726,67469.0,67468.0,0.74109]
[1722278881841,0.02323549,67470.0,67469.0,0.444648]
[1722278881968,0.05082177,67474.0,67473.0,0.51616455]
[1722278881969,0.09982177,67474.0,67473.0,0.51616455]
[1722278882170,0.09982177,67474.0,67473.0,0.83557855]
[1722278882373,0.12305726,67474.0,67473.0,0.83557855]
[1722278882580,0.12405726,67474.0,67473.0,0.83557855]
[1722278882780,0.10082177,67474.0,67473.0,0.83557855]
[1722278882984,0.12405726,67474.0,67473.0,0.148207]
[1722278883189,0.15738752,67474.0,67473.0,0.444621]
[1722278883415,0.12305726,67472.0,67471.0,0.14821]
[1722278883624,0.12305726,67469.0,67466.0,0.024]
[1722278883786,0.12305726,67467.0,67466.0,0.444666]
[1722278883990,0.12305726,67467.0,67466.0,0.741111]
[1722278884322,0.09982177,67467.0,67466.0,0.741111]
[1722278884521,0.04982177,67467.0,67466.0,0.741111]
[1722278885501,0.04982177,67467.0,67460.0,0.3358166]
[1722278885502,0.04982177,67463.0,67460.0,0.178839]
[1722278885692,0.12305726,67461.0,67460.0,0.000924]
[1722278885896,0.26475726,67461.0,67460.0,0.000924]
[1722278887161,0.26475726,67461.0,67460.0,0.149159]
[1722278887459,0.04982177,67461.0,67460.0,0.752101]
[1722278887657,0.12305726,67461.0,67460.0,0.752101]
[1722278887861,0.12305726,67461.0,67460.0,0.45563]
[1722278888098,0.12305726,67461.0,67460.0,0.44563]
[1722278888479,0.12305726,67461.0,67460.0,0.45963]
[1722278889043,0.04982177,67461.0,67460.0,0.014924]
[1722278889243,0.04982177,67462.0,67461.0,0.212833]
[1722278889491,0.04982177,67462.0,67461.0,0.805767]
[1722278889628,0.07323549,67467.0,67466.0,0.444667]
[1722278889986,0.07323549,67467.0,67466.0,0.741112]
[1722278890168,0.083,67469.0,67462.0,0.36800255]
[1722278890169,0.07323549,67463.0,67462.0,0.21977255]
[1722278890344,0.07323549,67463.0,67462.0,0.81269855]
[1722278890970,0.07323549,67466.0,67465.0,0.741125]
[1722278891330,0.083,67469.0,67468.0,0.74109]
[1722278891331,0.07323549,67469.0,67468.0,0.74109]
[1722278892021,0.07423549,67469.0,67468.0,0.148218]
[1722278893014,0.07423549,67467.0,67466.0,0.014]
[1722278893219,0.07423549,67467.0,67466.0,0.162222]
[1722278894180,0.08165904,67467.0,67466.0,0.014]
[1722278894389,0.08165904,67467.0,67463.0,0.07154355]
[1722278894390,0.07423549,67464.0,67463.0,0.07154355]
[1722278894590,0.07423549,67464.0,67463.0,0.21977255]
[1722278895484,0.07423549,67464.0,67463.0,0.51623055]
[1722278895485,0.07323549,67464.0,67463.0,0.51623055]
[1722278895687,0.07323549,67465.0,67464.0,0.148227]
[1722278895838,0.0801,67469.0,67466.0,0.444667]
[1722278895839,0.07323549,67467.0,67466.0,0.444667]
[1722278896041,0.07323549,67467.0,67466.0,0.741112]
[1722278896239,0.07323549,67467.0,67466.0,0.444667]
[1722278896742,0.07323549,67467.0,67466.0,0.56784345]
[1722278896946,0.07323549,67467.0,67466.0,0.86428845]
[1722278897347,0.07323549,67467.0,67466.0,0.56784345]
[1722278897556,0.07323549,67469.0,67468.0,0.148218]
[1722278897759,0.001,67472.0,67468.0,0.148218]
[1722278897760,0.07323549,67472.0,67468.0,0.41961245]
[1722278897965,0.07323549,67464.0,67463.0,0.162229]
[1722278898163,0.07323549,67464.0,67463.0,0.58186728]
[1722278898395,0.07323549,67464.0,67463.0,0.87832528]
[1722278898643,0.07323549,67466.0,67465.0,0.444675]
[1722278898815,0.07323549,67466.0,67465.0,0.56785528]
[1722278899191,0.07323549,67466.0,67465.0,0.12318028]
[1722278899192,0.07423549,67466.0,67465.0,0.12318028]
[1722278899399,0.07323549,67464.0,67463.0,0.014]
[1722278899629,0.07323549,67464.0,67463.0,0.28541324]
[1722278900024,0.07323549,67464.0,67463.0,0.28632624]
[1722278900594,0.07323549,67464.0,67463.0,0.27232624]
[1722278900961,0.07323549,67464.0,67463.0,0.86524224]
[1722278901146,0.07323549,67464.0,67463.0,0.56878424]
[1722278901660,0.07323549,67466.0,67463.0,0.12409724]
[1722278901959,0.07423549,67468.0,67467.0,0.444661]